[Event "Championnat d'Europe de Blitz"]
[Date "2024.12.09"]
[White "Baidetskyi, Valentin"]
[Black "Papasimakopoulos, Alexandros"]
[WhiteElo "2519"]
[BlackElo "2379"]
[Round "9.7"]
[Result "1-0"]
[TimeControl "180+2"]

1. e4 {[%emt 00:00:02] [%clk 00:03:02]} e6 {[%clk 00:03:04]} 2. d4 {[%emt
00:00:02] [%clk 00:03:03]} d5 {[%clk 00:03:05]} 3. Nd2 {[%emt 00:00:05] [%clk
00:03:00]} Nf6 {[%clk 00:03:06]} 4. e5 {[%emt 00:00:01] [%clk 00:03:01]} Nfd7
{[%clk 00:03:08]} 5. c3 {[%emt 00:00:03] [%clk 00:02:59]} c5 {[%clk 00:03:09]}
6. f4 {[%emt 00:00:02] [%clk 00:02:59]} cxd4 {[%clk 00:03:11]} 7. cxd4 {[%emt
00:00:01] [%clk 00:03:00]} a5 {[%clk 00:03:12]} 8. Ngf3 {[%emt 00:00:06] [%clk
00:02:56]} a4 {[%clk 00:03:14]} 9. Bd3 {[%emt 00:00:03] [%clk 00:02:55]} a3
{[%clk 00:03:15]} 10. O-O {[%emt 00:00:19] [%clk 00:02:37]} g6 {[%emt 00:00:01]
[%clk 00:03:17]} 11. bxa3 {[%emt 00:00:16] [%clk 00:02:23]} Bxa3 {[%emt
00:00:03] [%clk 00:03:16]} 12. Bxa3 {[%emt 00:00:01] [%clk 00:02:24]} Rxa3
{[%clk 00:03:17]} 13. Nb1 {[%emt 00:00:01] [%clk 00:02:25]} Ra8 {[%emt 00:00:18]
[%clk 00:03:00]} 14. Nc3 {[%emt 00:00:03] [%clk 00:02:24]} Nc6 {[%emt 00:00:07]
[%clk 00:02:55]} 15. Qd2 {[%emt 00:00:02] [%clk 00:02:25]} Qa5 {[%emt 00:00:12]
[%clk 00:02:45]} 16. Rac1 {[%emt 00:00:15] [%clk 00:02:11]} O-O {[%emt 00:00:16]
[%clk 00:02:32]} 17. Qf2 {[%emt 00:00:37] [%clk 00:01:36]} f5 {[%emt 00:00:21]
[%clk 00:02:12]} 18. Ng5 {[%emt 00:00:24] [%clk 00:01:15]} Re8 {[%emt 00:00:01]
[%clk 00:02:13]} 19. Nb5 {[%emt 00:00:08] [%clk 00:01:09]} Nf8 {[%emt 00:00:08]
[%clk 00:02:07]} 20. Nd6 {[%emt 00:00:14] [%clk 00:00:57]} Re7 {[%emt 00:00:02]
[%clk 00:02:07]} 21. h3 {[%emt 00:00:13] [%clk 00:00:46]} Qa7 {[%emt 00:00:13]
[%clk 00:01:56]} 22. Nf3 {[%emt 00:00:06] [%clk 00:00:41]} Bd7 {[%emt 00:00:10]
[%clk 00:01:48]} 23. Bb1 {[%emt 00:00:06] [%clk 00:00:37]} Na5 {[%emt 00:00:07]
[%clk 00:01:44]} 24. Rc7 {[%emt 00:00:12] [%clk 00:00:27]} Qb6 {[%emt 00:00:12]
[%clk 00:01:33]} 25. Rfc1 {[%emt 00:00:02] [%clk 00:00:27]} Rb8 {[%emt 00:00:06]
[%clk 00:01:29]} 26. Qh4 {[%emt 00:00:23] [%clk 00:00:06]} Rg7 {[%emt 00:00:06]
[%clk 00:01:25]} 27. R7c5 {[%emt 00:00:04] [%clk 00:00:04]} Bc6 {[%emt 00:00:07]
[%clk 00:01:20]} 28. Kh2 {[%clk 00:00:05]} Ra8 {[%emt 00:00:07] [%clk 00:01:16]}
29. Qf2 {[%emt 00:00:02] [%clk 00:00:04]} Nd7 {[%emt 00:00:20] [%clk 00:00:59]}
30. R5c3 {[%emt 00:00:02] [%clk 00:00:04]} Nf8 {[%emt 00:00:18] [%clk 00:00:43]}
31. g4 {[%emt 00:00:02] [%clk 00:00:04]} Nc4 {[%emt 00:00:05] [%clk 00:00:39]}
32. Nxc4 {[%emt 00:00:03] [%clk 00:00:03]} dxc4 {[%emt 00:00:01] [%clk
00:00:40]} 33. Rxc4 {[%clk 00:00:04]} Ra3 {[%emt 00:00:10] [%clk 00:00:33]} 34.
Ng1 {[%emt 00:00:03] [%clk 00:00:03]} Rd7 {[%emt 00:00:12] [%clk 00:00:22]} 35.
Ne2 {[%emt 00:00:02] [%clk 00:00:03]} Qa5 {[%emt 00:00:03] [%clk 00:00:21]} 36.
Qe1 {[%emt 00:00:03] [%clk 00:00:03]} Qd5 {[%emt 00:00:01] [%clk 00:00:21]} 37.
Qf2 {[%emt 00:00:02] [%clk 00:00:03]} Rf3 {[%emt 00:00:05] [%clk 00:00:18]} 38.
Qg1 {[%emt 00:00:01] [%clk 00:00:05]} fxg4 {[%emt 00:00:08] [%clk 00:00:12]} 39.
hxg4 {[%emt 00:00:02] [%clk 00:00:04]} Bb5 {[%emt 00:00:05] [%clk 00:00:09]} 40.
Rc5 {[%emt 00:00:01] [%clk 00:00:05]} Bxe2 {[%emt 00:00:06] [%clk 00:00:06]} 41.
Rxd5 {[%clk 00:00:06]} Rxd5 {[%clk 00:00:07]} 42. Be4 {[%emt 00:00:03]} Ra5
{[%clk 00:00:07]} 43. Bxf3 {[%emt 00:00:02] [%clk 00:00:07]} Bxf3 {[%emt
00:00:01] [%clk 00:00:09]} 44. Qf2 {[%emt 00:00:05] [%clk 00:00:04]} Bxg4 {[%emt
00:00:03] [%clk 00:00:08]} 45. Rc8 {[%clk 00:00:05]} Bf5 {[%emt 00:00:08] [%clk
00:00:03]} 46. Qb2 {[%emt 00:00:01] [%clk 00:00:05]} 1-0

[Site "Europe Echecs"]

[Event "Championnat d'Europe de Blitz"]
[Date "2024.12.09"]
[White "Bernadskiy, Vitaliy"]
[Black "Deac, Bogdan-Daniel"]
[WhiteElo "2546"]
[BlackElo "2696"]
[Round "9.8"]
[Result "0-1"]
[TimeControl "180+2"]

1. e4 {[%clk 00:03:03]} e5 {[%emt 00:00:02] [%clk 00:03:03]} 2. Nf3 {[%emt
00:00:01] [%clk 00:03:03]} Nf6 {[%emt 00:00:02] [%clk 00:03:03]} 3. Nxe5 {[%emt
00:00:06] [%clk 00:03:00]} d6 {[%emt 00:00:01] [%clk 00:03:04]} 4. Nf3 {[%emt
00:00:01] [%clk 00:03:00]} Nxe4 {[%emt 00:00:02] [%clk 00:03:05]} 5. Qe2 {[%emt
00:00:01] [%clk 00:03:00]} Qe7 {[%emt 00:00:02] [%clk 00:03:05]} 6. d3 {[%emt
00:00:02] [%clk 00:03:00]} Nf6 {[%emt 00:00:06] [%clk 00:03:01]} 7. Bg5 {[%emt
00:00:02] [%clk 00:03:00]} Qxe2+ {[%emt 00:00:28] [%clk 00:02:35]} 8. Bxe2
{[%emt 00:00:02] [%clk 00:03:00]} Be7 {[%emt 00:00:01] [%clk 00:02:36]} 9. Nc3
{[%emt 00:00:02] [%clk 00:03:01]} h6 {[%emt 00:00:04] [%clk 00:02:34]} 10. Bh4
{[%emt 00:00:10] [%clk 00:02:52]} Nc6 {[%emt 00:00:21] [%clk 00:02:15]} 11. O-O
{[%emt 00:00:35] [%clk 00:02:20]} a6 {[%emt 00:00:12] [%clk 00:02:05]} 12. Rfe1
{[%emt 00:00:01] [%clk 00:02:20]} Be6 {[%emt 00:00:03] [%clk 00:02:04]} 13. Bf1
{[%emt 00:00:28] [%clk 00:01:54]} g5 {[%emt 00:00:31] [%clk 00:01:35]} 14. Bg3
{[%emt 00:00:01] [%clk 00:01:55]} Kd7 {[%emt 00:00:08] [%clk 00:01:29]} 15. Ne2
{[%emt 00:00:13] [%clk 00:01:44]} Nh5 {[%emt 00:00:24] [%clk 00:01:07]} 16. Nfd4
{[%emt 00:00:10] [%clk 00:01:37]} Bf6 {[%emt 00:00:30] [%clk 00:00:38]} 17. Nxe6
{[%emt 00:00:02] [%clk 00:01:37]} fxe6 {[%emt 00:00:01] [%clk 00:00:39]} 18. c3
{[%emt 00:00:07] [%clk 00:01:32]} Raf8 {[%emt 00:00:03] [%clk 00:00:37]} 19. d4
{[%emt 00:00:04] [%clk 00:01:30]} Rh7 {[%emt 00:00:16] [%clk 00:00:24]} 20. Nc1
{[%emt 00:00:02] [%clk 00:01:31]} Nxg3 {[%emt 00:00:01] [%clk 00:00:24]} 21.
hxg3 {[%emt 00:00:01] [%clk 00:01:32]} h5 {[%emt 00:00:02] [%clk 00:00:24]} 22.
Bc4 {[%emt 00:00:11] [%clk 00:01:23]} e5 {[%emt 00:00:12] [%clk 00:00:14]} 23.
dxe5 {[%emt 00:00:17] [%clk 00:01:08]} Nxe5 {[%emt 00:00:02] [%clk 00:00:14]}
24. Bd5 {[%emt 00:00:01] [%clk 00:01:09]} c6 {[%emt 00:00:03] [%clk 00:00:12]}
25. Be4 {[%emt 00:00:02] [%clk 00:01:09]} Re7 {[%emt 00:00:09] [%clk 00:00:06]}
26. Nd3 {[%emt 00:00:01] [%clk 00:01:10]} Kc7 {[%emt 00:00:03] [%clk 00:00:05]}
27. Nxe5 {[%emt 00:00:03] [%clk 00:01:09]} Bxe5 {[%emt 00:00:01] [%clk
00:00:06]} 28. Re3 {[%emt 00:00:14] [%clk 00:00:57]} Ref7 {[%emt 00:00:03] [%clk
00:00:05]} 29. Re2 {[%emt 00:00:07] [%clk 00:00:52]} h4 {[%emt 00:00:02] [%clk
00:00:06]} 30. g4 {[%emt 00:00:05] [%clk 00:00:49]} Rf4 {[%emt 00:00:01] [%clk
00:00:05]} 31. Bf5 {[%emt 00:00:03] [%clk 00:00:49]} b5 {[%emt 00:00:01] [%clk
00:00:06]} 32. Rae1 {[%emt 00:00:05] [%clk 00:00:45]} b4 {[%emt 00:00:03] [%clk
00:00:06]} 33. cxb4 {[%emt 00:00:06] [%clk 00:00:41]} Rxb4 {[%clk 00:00:07]} 34.
b3 {[%emt 00:00:02] [%clk 00:00:41]} a5 {[%emt 00:00:01] [%clk 00:00:08]} 35.
Re4 {[%emt 00:00:04] [%clk 00:00:39]} Rfb8 {[%emt 00:00:02] [%clk 00:00:07]} 36.
Rc1 {[%emt 00:00:06] [%clk 00:00:35]} a4 {[%emt 00:00:03] [%clk 00:00:07]} 37.
bxa4 {[%emt 00:00:04] [%clk 00:00:33]} Rb2 {[%emt 00:00:04] [%clk 00:00:05]} 38.
Be6 {[%emt 00:00:20] [%clk 00:00:15]} Re8 {[%emt 00:00:02] [%clk 00:00:04]} 39.
Bd5 {[%emt 00:00:02] [%clk 00:00:15]} c5 {[%emt 00:00:03] [%clk 00:00:04]} 40.
a5 {[%emt 00:00:03] [%clk 00:00:15]} Rf8 {[%clk 00:00:04]} 41. a6 {[%emt
00:00:05] [%clk 00:00:12]} Kb6 {[%emt 00:00:02] [%clk 00:00:04]} 42. Ra4 {[%emt
00:00:02] [%clk 00:00:12]} Ka7 {[%clk 00:00:06]} 43. Bf3 {[%emt 00:00:08] [%clk
00:00:07]} h3 {[%emt 00:00:01] [%clk 00:00:06]} 44. Ra3 {[%emt 00:00:03] [%clk
00:00:06]} hxg2 {[%emt 00:00:02] [%clk 00:00:05]} 45. Kxg2 {[%emt 00:00:02]
[%clk 00:00:07]} Rh8 {[%emt 00:00:01] [%clk 00:00:06]} 46. Rb3 {[%emt 00:00:04]
[%clk 00:00:05]} Rxb3 {[%emt 00:00:02] [%clk 00:00:06]} 47. axb3 {[%emt
00:00:01] [%clk 00:00:06]} Kxa6 {[%clk 00:00:07]} 48. Be2+ {[%emt 00:00:02]
[%clk 00:00:06]} Ka5 {[%emt 00:00:02] [%clk 00:00:07]} 49. Bc4 {[%emt 00:00:02]
[%clk 00:00:06]} Kb4 {[%emt 00:00:03] [%clk 00:00:06]} 50. Rh1 {[%emt 00:00:01]
[%clk 00:00:06]} Rf8 {[%emt 00:00:03] [%clk 00:00:05]} 51. Rh7 {[%emt 00:00:04]
[%clk 00:00:04]} Rf4 {[%emt 00:00:03] [%clk 00:00:05]} 52. f3 {[%emt 00:00:01]
[%clk 00:00:05]} Rd4 {[%emt 00:00:01] [%clk 00:00:06]} 53. Rh5 {[%emt 00:00:04]
[%clk 00:00:04]} Rd2+ {[%emt 00:00:01] [%clk 00:00:06]} 54. Kf1 {[%emt 00:00:01]
[%clk 00:00:05]} Bf4 {[%emt 00:00:01] [%clk 00:00:07]} 55. Rh6 {[%emt 00:00:02]
[%clk 00:00:05]} d5 {[%emt 00:00:01] [%clk 00:00:08]} 56. Be2 {[%emt 00:00:01]
[%clk 00:00:05]} Kxb3 {[%emt 00:00:02] [%clk 00:00:08]} 57. Ke1 {[%emt 00:00:02]
[%clk 00:00:06]} c4 {[%emt 00:00:02] [%clk 00:00:08]} 58. Rf6 {[%emt 00:00:01]
[%clk 00:00:07]} Kc3 {[%emt 00:00:01] [%clk 00:00:09]} 59. Ra6 {[%emt 00:00:02]
[%clk 00:00:08]} Rb2 {[%emt 00:00:01] [%clk 00:00:09]} 60. Ra5 {[%emt 00:00:02]
[%clk 00:00:08]} Kd4 {[%emt 00:00:02] [%clk 00:00:09]} 61. Ra4 {[%emt 00:00:01]
[%clk 00:00:09]} Bd6 {[%emt 00:00:03] [%clk 00:00:08]} 62. Kf2 {[%emt 00:00:03]
[%clk 00:00:08]} Bf4 {[%emt 00:00:02] [%clk 00:00:08]} 63. Ra5 {[%emt 00:00:01]
[%clk 00:00:09]} Be3+ {[%emt 00:00:02] [%clk 00:00:08]} 64. Kf1 {[%emt 00:00:01]
[%clk 00:00:10]} Rb1+ {[%clk 00:00:09]} 65. Kg2 {[%emt 00:00:01] [%clk
00:00:11]} Rg1+ {[%emt 00:00:02] [%clk 00:00:09]} 66. Kh2 {[%clk 00:00:12]} Re1
{[%emt 00:00:02] [%clk 00:00:09]} 67. Ra2 {[%clk 00:00:13]} Kc5 {[%emt 00:00:05]
[%clk 00:00:07]} 68. Kg2 {[%emt 00:00:04] [%clk 00:00:11]} Kb4 {[%emt 00:00:02]
[%clk 00:00:07]} 69. Bf1 {[%emt 00:00:02] [%clk 00:00:11]} Bf4 {[%emt 00:00:03]
[%clk 00:00:06]} 70. Ra7 {[%emt 00:00:06] [%clk 00:00:08]} d4 {[%emt 00:00:01]
[%clk 00:00:05]} 71. Rb7+ {[%emt 00:00:03] [%clk 00:00:07]} Kc3 {[%emt 00:00:02]
[%clk 00:00:06]} 72. Kf2 {[%emt 00:00:05] [%clk 00:00:04]} Ra1 {[%emt 00:00:03]
[%clk 00:00:05]} 73. Rd7 {[%emt 00:00:04] [%clk 00:00:00]} 0-1

[Site "Europe Echecs"]

[Event "Championnat d'Europe de Blitz"]
[Date "2024.12.09"]
[White "Mamedov, Rauf"]
[Black "Paichadze, Luka"]
[WhiteElo "2656"]
[BlackElo "2532"]
[Round "9.9"]
[Result "1-0"]
[TimeControl "180+2"]

1. e4 {[%emt 00:00:02] [%clk 00:03:02]} c6 {[%emt 00:00:02] [%clk 00:03:00]} 2.
Nf3 {[%emt 00:00:05]} d5 {[%clk 00:03:01]} 3. e5 {[%emt 00:00:01] [%clk
00:03:04]} c5 {[%emt 00:00:04] [%clk 00:02:59]} 4. c4 {[%emt 00:00:01] [%clk
00:03:05]} d4 {[%emt 00:00:04] [%clk 00:02:57]} 5. g3 {[%emt 00:00:01] [%clk
00:03:06]} e6 {[%emt 00:00:13] [%clk 00:02:46]} 6. Bg2 {[%emt 00:00:01] [%clk
00:03:07]} Bd7 {[%clk 00:02:47]} 7. O-O {[%emt 00:00:17] [%clk 00:02:52]} Bc6
{[%emt 00:00:01] [%clk 00:02:48]} 8. d3 {[%emt 00:00:01] [%clk 00:02:52]} Nd7
{[%emt 00:00:02] [%clk 00:02:49]} 9. Nbd2 {[%emt 00:00:01] [%clk 00:02:53]} Ne7
{[%emt 00:00:03] [%clk 00:02:48]} 10. a3 {[%emt 00:00:03] [%clk 00:02:52]} a5
{[%emt 00:00:03] [%clk 00:02:47]} 11. Rb1 {[%clk 00:02:53]} a4 {[%emt 00:00:03]
[%clk 00:02:46]} 12. Re1 {[%emt 00:00:03] [%clk 00:02:52]} Ng6 {[%emt 00:00:01]
[%clk 00:02:47]} 13. h4 {[%emt 00:00:02] [%clk 00:02:53]} Qc7 {[%emt 00:00:06]
[%clk 00:02:42]} 14. Qe2 {[%emt 00:00:03] [%clk 00:02:52]} h5 {[%emt 00:00:24]
[%clk 00:02:21]} 15. Ne4 {[%emt 00:00:08] [%clk 00:02:46]} Ndxe5 {[%emt
00:00:17] [%clk 00:02:05]} 16. Nxe5 {[%emt 00:00:02] [%clk 00:02:46]} Qxe5
{[%emt 00:00:04] [%clk 00:02:04]} 17. f4 {[%emt 00:00:07] [%clk 00:02:41]} Qc7
{[%emt 00:00:43] [%clk 00:01:23]} 18. f5 {[%emt 00:00:01] [%clk 00:02:42]} Ne5
{[%emt 00:00:06] [%clk 00:01:18]} 19. fxe6 {[%emt 00:00:15] [%clk 00:02:29]} f6
{[%emt 00:00:01] [%clk 00:01:19]} 20. Bf4 {[%emt 00:00:01] [%clk 00:02:29]} Be7
{[%emt 00:00:08] [%clk 00:01:14]} 21. b4 {[%emt 00:00:04] [%clk 00:02:27]} axb3
{[%emt 00:00:02] [%clk 00:01:14]} 22. Rxb3 {[%clk 00:02:29]} Ra6 {[%emt
00:00:04] [%clk 00:01:12]} 23. Ng5 {[%emt 00:00:40] [%clk 00:01:50]} Bxg2 {[%emt
00:00:09] [%clk 00:01:04]} 24. Qxg2 {[%emt 00:00:02] [%clk 00:01:51]} Qa5 {[%emt
00:00:25] [%clk 00:00:41]} 25. Rf1 {[%clk 00:01:52]} Nc6 {[%emt 00:00:19] [%clk
00:00:25]} 26. Nf7 {[%emt 00:00:16] [%clk 00:01:37]} O-O {[%emt 00:00:01] [%clk
00:00:25]} 27. Rxb7 {[%emt 00:00:11] [%clk 00:01:29]} Re8 {[%clk 00:00:27]} 28.
Qe4 {[%emt 00:00:07] [%clk 00:01:23]} Nd8 {[%emt 00:00:06] [%clk 00:00:23]} 29.
Nh6+ {[%emt 00:00:16] [%clk 00:01:09]} gxh6 {[%emt 00:00:15] [%clk 00:00:08]}
30. Qg6+ {[%clk 00:01:11]} 1-0

[Site "Europe Echecs"]

[Event "Championnat d'Europe de Blitz"]
[Date "2024.12.09"]
[White "Pancevski, Filip"]
[Black "Lagarde, Maxime"]
[WhiteElo "2420"]
[BlackElo "2600"]
[Round "9.10"]
[Result "1-0"]
[TimeControl "180+2"]

1. e4 {[%emt 00:00:02] [%clk 00:03:02]} c5 {[%emt 00:00:01] [%clk 00:03:04]} 2.
d3 {[%emt 00:00:02] [%clk 00:03:02]} Nc6 {[%emt 00:00:03] [%clk 00:03:03]} 3. f4
{[%emt 00:00:01] [%clk 00:03:03]} g6 {[%emt 00:00:09] [%clk 00:02:55]} 4. Nf3
{[%emt 00:00:01] [%clk 00:03:04]} Bg7 {[%emt 00:00:01] [%clk 00:02:56]} 5. Be2
{[%clk 00:03:05]} d6 {[%emt 00:00:02] [%clk 00:02:57]} 6. O-O {[%emt 00:00:01]
[%clk 00:03:05]} b5 {[%emt 00:00:04] [%clk 00:02:56]} 7. a3 {[%emt 00:00:04]
[%clk 00:03:03]} a5 {[%emt 00:00:02] [%clk 00:02:56]} 8. c3 {[%emt 00:00:16]
[%clk 00:02:49]} Rb8 {[%emt 00:00:05] [%clk 00:02:53]} 9. d4 {[%emt 00:00:09]
[%clk 00:02:42]} cxd4 {[%emt 00:00:34] [%clk 00:02:21]} 10. cxd4 {[%emt
00:00:02] [%clk 00:02:42]} Bg4 {[%emt 00:00:08] [%clk 00:02:15]} 11. Be3 {[%emt
00:00:04] [%clk 00:02:40]} Qb6 {[%emt 00:00:21] [%clk 00:01:56]} 12. Nc3 {[%emt
00:01:53] [%clk 00:00:48]} Bxf3 {[%emt 00:00:06] [%clk 00:01:52]} 13. Bxf3
{[%emt 00:00:10] [%clk 00:00:41]} Bxd4 {[%emt 00:00:01] [%clk 00:01:53]} 14.
Bxd4 {[%emt 00:00:02] [%clk 00:00:41]} Qxd4+ {[%emt 00:00:01] [%clk 00:01:53]}
15. Kh1 {[%clk 00:00:42]} Qxd1 {[%emt 00:00:12] [%clk 00:01:43]} 16. Rfxd1
{[%clk 00:00:44]} Nd8 {[%emt 00:00:20] [%clk 00:01:24]} 17. Rd5 {[%emt 00:00:06]
[%clk 00:00:40]} b4 {[%emt 00:00:05] [%clk 00:01:23]} 18. Na4 {[%emt 00:00:05]
[%clk 00:00:36]} bxa3 {[%emt 00:00:08] [%clk 00:01:17]} 19. bxa3 {[%emt
00:00:02] [%clk 00:00:36]} Nf6 {[%emt 00:00:08] [%clk 00:01:11]} 20. Rxa5 {[%emt
00:00:01] [%clk 00:00:37]} O-O {[%emt 00:00:04] [%clk 00:01:08]} 21. Ra7 {[%emt
00:00:14] [%clk 00:00:25]} e5 {[%emt 00:00:23] [%clk 00:00:47]} 22. Ra6 {[%emt
00:00:13] [%clk 00:00:14]} exf4 {[%emt 00:00:07] [%clk 00:00:42]} 23. Rxd6
{[%emt 00:00:01] [%clk 00:00:15]} Ne6 {[%clk 00:00:44]} 24. Nb6 {[%emt 00:00:03]
[%clk 00:00:14]} Rfd8 {[%emt 00:00:11] [%clk 00:00:34]} 25. Rxd8+ {[%emt
00:00:02] [%clk 00:00:15]} Rxd8 {[%clk 00:00:36]} 26. a4 {[%emt 00:00:03] [%clk
00:00:14]} Nc5 {[%emt 00:00:04] [%clk 00:00:33]} 27. a5 {[%emt 00:00:05] [%clk
00:00:11]} Rb8 {[%emt 00:00:17] [%clk 00:00:18]} 28. e5 {[%emt 00:00:07] [%clk
00:00:06]} Ne8 {[%clk 00:00:20]} 29. h3 {[%emt 00:00:03] [%clk 00:00:05]} Nb3
{[%emt 00:00:04] [%clk 00:00:18]} 30. Ra3 {[%emt 00:00:04] [%clk 00:00:03]} Nxa5
{[%emt 00:00:01] [%clk 00:00:18]} 31. Nd7 {[%emt 00:00:01] [%clk 00:00:05]} Rb1+
{[%emt 00:00:01] [%clk 00:00:19]} 32. Kh2 {[%clk 00:00:06]} Rb5 {[%emt 00:00:10]
[%clk 00:00:12]} 33. Rc3 {[%emt 00:00:02] [%clk 00:00:06]} Kg7 {[%emt 00:00:09]}
34. Rc8 {[%clk 00:00:07]} Rb2 {[%emt 00:00:04] [%clk 00:00:04]} 35. Rxe8 {[%emt
00:00:01] [%clk 00:00:08]} Nb3 {[%emt 00:00:01] [%clk 00:00:05]} 36. Nf6 {[%emt
00:00:01] [%clk 00:00:09]} Nd4 {[%emt 00:00:02] [%clk 00:00:05]} 37. Kg1 {[%emt
00:00:02] [%clk 00:00:08]} Rb1+ {[%emt 00:00:02] [%clk 00:00:06]} 38. Kf2 {[%clk
00:00:10]} Rb2+ {[%clk 00:00:07]} 39. Kg1 {[%clk 00:00:11]} Rb1+ {[%emt
00:00:01] [%clk 00:00:08]} 40. Kf2 {[%clk 00:00:12]} Rb2+ {[%emt 00:00:01] [%clk
00:00:10]} 41. Ke1 {[%clk 00:00:14]} Kh6 {[%emt 00:00:06] [%clk 00:00:05]} 42.
h4 {[%clk 00:00:15]} Nf5 {[%emt 00:00:03] [%clk 00:00:05]} 43. Rh8 {[%emt
00:00:02] [%clk 00:00:15]} Nxh4 {[%emt 00:00:04] [%clk 00:00:03]} 44. Rxh7+
{[%clk 00:00:16]} 1-0

[Site "Europe Echecs"]

[Event "Championnat d'Europe de Blitz"]
[Date "2024.12.09"]
[White "Sargissian, Gabriel"]
[Black "Zajic, Milan"]
[WhiteElo "2628"]
[BlackElo "2392"]
[Round "9.11"]
[Result "0-1"]
[TimeControl "180+2"]

1. Nf3 {[%emt 00:00:05] [%clk 00:02:59]} d5 {[%emt 00:00:02] [%clk 00:03:03]} 2.
g3 {[%clk 00:02:59]} Nf6 {[%emt 00:00:01] [%clk 00:03:04]} 3. Bg2 {[%emt
00:00:02] [%clk 00:03:00]} c6 {[%emt 00:00:01] [%clk 00:03:05]} 4. O-O {[%emt
00:00:02] [%clk 00:03:00]} Bg4 {[%emt 00:00:01] [%clk 00:03:05]} 5. h3 {[%emt
00:00:04] [%clk 00:02:58]} Bh5 {[%emt 00:00:02] [%clk 00:03:06]} 6. c4 {[%emt
00:00:01] [%clk 00:02:58]} e6 {[%emt 00:00:02] [%clk 00:03:07]} 7. d4 {[%emt
00:00:05] [%clk 00:02:55]} Nbd7 {[%emt 00:00:07] [%clk 00:03:02]} 8. cxd5 {[%emt
00:00:16] [%clk 00:02:40]} exd5 {[%emt 00:00:02] [%clk 00:03:02]} 9. Qb3 {[%emt
00:00:02] [%clk 00:02:41]} Qb6 {[%emt 00:00:01] [%clk 00:03:03]} 10. Qe3+ {[%emt
00:00:01] [%clk 00:02:41]} Be7 {[%emt 00:00:02] [%clk 00:03:04]} 11. Nh4 {[%emt
00:00:02] [%clk 00:02:41]} Bg6 {[%emt 00:00:07] [%clk 00:02:59]} 12. Nc3 {[%emt
00:00:07] [%clk 00:02:36]} Nf8 {[%emt 00:00:05] [%clk 00:02:56]} 13. Nxg6 {[%emt
00:00:17] [%clk 00:02:21]} hxg6 {[%emt 00:00:02] [%clk 00:02:56]} 14. Qd3 {[%emt
00:00:10] [%clk 00:02:13]} Ne6 {[%emt 00:00:01] [%clk 00:02:57]} 15. Rd1 {[%emt
00:00:01] [%clk 00:02:13]} O-O {[%emt 00:00:02] [%clk 00:02:57]} 16. e3 {[%emt
00:00:13] [%clk 00:02:03]} Rfe8 {[%emt 00:00:01] [%clk 00:02:57]} 17. Qc2 {[%emt
00:00:11] [%clk 00:01:54]} a5 {[%emt 00:00:02] [%clk 00:02:58]} 18. Bd2 {[%emt
00:00:06] [%clk 00:01:49]} Qd8 {[%emt 00:00:14] [%clk 00:02:46]} 19. Rac1 {[%emt
00:00:09] [%clk 00:01:42]} Bd6 {[%emt 00:00:24] [%clk 00:02:24]} 20. Ne2 {[%emt
00:00:17] [%clk 00:01:27]} Ng5 {[%emt 00:00:04] [%clk 00:02:22]} 21. Nf4 {[%emt
00:00:02] [%clk 00:01:27]} Nge4 {[%emt 00:00:03] [%clk 00:02:21]} 22. Be1 {[%emt
00:00:02] [%clk 00:01:27]} g5 {[%emt 00:00:25] [%clk 00:01:58]} 23. Nd3 {[%emt
00:00:08] [%clk 00:01:21]} g4 {[%emt 00:00:01] [%clk 00:01:59]} 24. h4 {[%emt
00:00:08] [%clk 00:01:15]} Qd7 {[%emt 00:00:04] [%clk 00:01:58]} 25. Bc3 {[%emt
00:00:05] [%clk 00:01:11]} Qf5 {[%emt 00:00:02] [%clk 00:01:58]} 26. Nf4 {[%emt
00:00:25] [%clk 00:00:49]} g5 {[%emt 00:00:10] [%clk 00:01:50]} 27. hxg5 {[%clk
00:00:49]} Qxg5 {[%emt 00:00:02] [%clk 00:01:51]} 28. Nd3 {[%emt 00:00:09] [%clk
00:00:42]} Kg7 {[%emt 00:00:27] [%clk 00:01:26]} 29. Ne5 {[%emt 00:00:01] [%clk
00:00:43]} Rh8 {[%emt 00:00:03] [%clk 00:01:25]} 30. Qe2 {[%emt 00:00:03] [%clk
00:00:41]} Nxc3 {[%emt 00:00:15] [%clk 00:01:13]} 31. bxc3 {[%emt 00:00:07]
[%clk 00:00:36]} Rh5 {[%emt 00:00:04] [%clk 00:01:11]} 32. f4 {[%emt 00:00:13]
[%clk 00:00:25]} gxf3 {[%emt 00:00:01] [%clk 00:01:12]} 33. Qxf3 {[%emt
00:00:01] [%clk 00:00:26]} Bxe5 {[%emt 00:00:07] [%clk 00:01:07]} 34. dxe5
{[%clk 00:00:27]} Qxe5 {[%emt 00:00:01] [%clk 00:01:08]} 35. Rd4 {[%emt
00:00:02] [%clk 00:00:27]} Rg5 {[%emt 00:00:01] [%clk 00:01:08]} 36. Rf4 {[%clk
00:00:28]} Re8 {[%emt 00:00:06] [%clk 00:01:05]} 37. Rf1 {[%emt 00:00:01] [%clk
00:00:29]} Rg6 {[%emt 00:00:03] [%clk 00:01:04]} 38. g4 {[%emt 00:00:04] [%clk
00:00:26]} Re7 {[%emt 00:00:09] [%clk 00:00:57]} 39. Rf5 {[%emt 00:00:06] [%clk
00:00:22]} Qe6 {[%emt 00:00:18] [%clk 00:00:42]} 40. g5 {[%emt 00:00:03] [%clk
00:00:21]} Ne4 {[%emt 00:00:02] [%clk 00:00:42]} 41. Bh3 {[%emt 00:00:03] [%clk
00:00:19]} Nd2 {[%emt 00:00:06] [%clk 00:00:39]} 42. Qf4 {[%emt 00:00:11] [%clk
00:00:11]} Nxf1 {[%emt 00:00:01] [%clk 00:00:39]} 43. Kxf1 {[%emt 00:00:01]
[%clk 00:00:12]} Qxe3 {[%emt 00:00:09] [%clk 00:00:32]} 0-1

[Site "Europe Echecs"]